bitfinex-derivatives/quotes_BTCF0:USTF0_20251111
["timestamp","ask_amount","ask_price","bid_price","bid_amount"]
[1762831891182,0.0237785,106830.0,106820.0,0.16745737]
[1762831892384,0.11525917,106830.0,106820.0,0.16745737]
[1762831892602,0.0237785,106830.0,106820.0,0.16745737]
[1762831892989,0.0462285,106830.0,106820.0,0.16745737]
[1762831893190,0.0237785,106830.0,106820.0,0.40149737]
[1762831893497,0.0237785,106830.0,106820.0,0.16745737]
[1762831893686,0.0237785,106830.0,106820.0,0.40149737]
[1762831894700,0.0237785,106830.0,106820.0,0.16745737]
[1762831894996,0.0237785,106830.0,106820.0,0.40149737]
[1762831895193,0.0237785,106830.0,106820.0,0.49297804]
[1762831895399,0.49230463,106850.0,106840.0,0.1520812]
[1762831895695,0.49230463,106850.0,106840.0,0.15427923]
[1762831895892,0.13598463,106850.0,106840.0,0.15427923]
[1762831896497,0.22960713,106850.0,106840.0,0.15427923]
[1762831896696,0.13598463,106850.0,106840.0,0.15427923]
[1762831897199,0.22960713,106850.0,106840.0,0.15427923]
[1762831897588,0.22960713,106850.0,106840.0,0.06064803]
[1762831897796,0.22960713,106850.0,106840.0,0.15427923]
[1762831898898,0.22958728,106850.0,106840.0,0.15427923]
[1762831900502,0.3210481,106850.0,106840.0,0.15427923]
[1762831901596,0.3242681,106850.0,106840.0,0.00219803]
[1762831901900,0.6804281,106850.0,106840.0,0.00219803]
[1762831903101,0.6814281,106850.0,106840.0,0.00219803]
[1762831903495,0.6824281,106850.0,106840.0,0.00219803]
[1762831903691,0.6834281,106850.0,106840.0,0.11842923]
[1762831904001,0.6834281,106850.0,106840.0,0.15427923]
[1762831904201,0.6802081,106850.0,106840.0,0.15427923]
[1762831904797,0.49512478,106850.0,106840.0,0.15427923]
[1762831905105,0.58574728,106850.0,106840.0,0.15427923]
[1762831905711,0.49212478,106850.0,106840.0,0.15427923]
[1762831906102,0.58574728,106850.0,106840.0,0.15427923]
[1762831910506,0.49212478,106850.0,106840.0,0.15427923]
[1762831913308,0.13596478,106850.0,106840.0,0.15427923]
[1762831913702,0.22958728,106850.0,106840.0,0.15427923]
[1762831914311,0.13596478,106850.0,106840.0,0.15427923]
[1762831915909,0.13596478,106850.0,106840.0,0.24574005]
[1762831916213,0.09169478,106850.0,106840.0,0.24574005]
[1762831916403,0.00023396,106850.0,106840.0,0.24574005]
[1762831917510,0.09160125,106860.0,106850.0,0.1530325]
[1762831917713,0.04441043,106860.0,106850.0,0.24669135]
[1762831918210,0.13587125,106860.0,106850.0,0.24669135]
[1762831918606,0.13687125,106860.0,106850.0,0.24669135]
[1762831918812,0.00114043,106860.0,106850.0,0.24669135]
[1762831919204,0.00314043,106860.0,106850.0,0.24669135]
[1762831919809,0.13887125,106860.0,106850.0,0.24669135]
[1762831920112,0.09460125,106860.0,106850.0,0.24669135]
[1762831920313,0.00314043,106860.0,106850.0,0.24669135]
[1762831921413,0.00314043,106860.0,106850.0,0.48065135]
[1762831922111,0.00314043,106860.0,106850.0,0.24669135]
[1762831922507,0.00314043,106860.0,106850.0,0.48065135]
[1762831922707,0.00214043,106860.0,106850.0,0.48065135]
[1762831922913,0.13434082,106880.0,106870.0,0.150965]
[1762831923209,0.13434082,106880.0,106870.0,0.15316303]
[1762831923612,0.13434082,106890.0,106880.0,0.1509562]
[1762831923804,0.02186,106870.0,106860.0,0.1278699]
[1762831924008,0.13434082,106870.0,106860.0,0.15316793]
[1762831926118,0.13434082,106870.0,106860.0,0.15416793]
[1762831926418,0.13434082,106870.0,106860.0,0.15716793]
[1762831926720,0.13434082,106870.0,106860.0,0.15816793]
[1762831927020,0.13434082,106900.0,106890.0,0.1509474]
[1762831927219,0.15698032,106900.0,106890.0,0.15314543]
[1762831927518,0.24844114,106900.0,106890.0,0.15314543]
[1762831927719,0.15698032,106900.0,106890.0,0.15314543]
[1762831928516,0.34201984,106900.0,106890.0,0.15314543]
[1762831929110,0.34301984,106900.0,106890.0,0.15314543]
[1762831929620,0.25044114,106900.0,106890.0,0.15314543]
[1762831929812,0.34301984,106900.0,106890.0,0.15314543]
[1762831930013,0.34201984,106900.0,106890.0,0.15314543]
[1762831931223,0.24844114,106900.0,106890.0,0.15314543]
[1762831931820,0.34201984,106900.0,106890.0,0.15314543]
[1762831932713,0.24844114,106900.0,106890.0,0.15314543]
[1762831934222,0.15698032,106900.0,106890.0,0.15314543]
[1762831935423,0.15698032,106900.0,106890.0,0.24460625]
[1762831935723,0.15698032,106900.0,106890.0,0.15314543]
[1762831936825,0.15698032,106900.0,106890.0,0.24460625]
[1762831937826,0.0226395,106900.0,106890.0,0.24460625]
[1762831938127,0.0444995,106900.0,106890.0,0.24460625]
[1762831938926,0.0226395,106900.0,106890.0,0.24460625]
[1762831940131,0.11410032,106900.0,106890.0,0.24460625]
[1762831941120,0.0226395,106900.0,106890.0,0.24460625]
[1762831941320,0.11440125,106910.0,106900.0,0.1524388]
[1762831941520,0.11440125,106910.0,106900.0,0.24609765]
[1762831941720,0.13707125,106910.0,106900.0,0.24609765]
[1762831942321,0.09160125,106910.0,106900.0,0.24609765]
[1762831942629,0.13907125,106910.0,106900.0,0.15463683]
[1762831944436,0.09360125,106910.0,106900.0,0.24609765]
[1762831945124,0.00214043,106910.0,106900.0,0.33755847]
[1762831945324,0.00214043,106910.0,106900.0,0.24609765]
[1762831945525,0.00214043,106910.0,106900.0,0.47993765]
[1762831946525,0.05031328,106920.0,106910.0,0.15243]
[1762831946726,0.1417741,106920.0,106910.0,0.24608885]
[1762831947131,0.1872441,106930.0,106920.0,0.1524213]
[1762831947426,0.1645741,106930.0,106920.0,0.15461933]
[1762831947626,0.04547,106930.0,106920.0,0.15461933]
[1762831947833,0.13693082,106930.0,106920.0,0.15461933]
[1762831948937,0.13793082,106930.0,106920.0,0.15461933]
[1762831951333,0.23148332,106930.0,106920.0,0.06105803]
[1762831951635,0.1400225,106930.0,106920.0,0.06105803]
[1762831951837,0.23148332,106930.0,106920.0,0.06105803]
[1762831952036,0.32294414,106930.0,106920.0,0.04719803]
[1762831952335,0.32294414,106930.0,106920.0,0.06105803]
[1762831952336,0.25932842,106930.0,106920.0,0.06105803]
[1762831953335,0.28064314,106930.0,106920.0,0.06105803]
[1762831958936,0.28050599,106930.0,106920.0,0.06105803]
[1762831961037,0.28050599,106930.0,106910.0,0.00014043]
[1762831961038,0.08451097,106920.0,106910.0,0.00014043]
[1762831961228,0.69477154,106920.0,106910.0,0.00014043]
[1762831961727,0.64435303,106920.0,106910.0,0.00014043]
[1762831962344,0.69478157,106920.0,106910.0,0.00114043]
[1762831962530,0.69478157,106920.0,106910.0,0.02388043]
[1762831962730,0.69478157,106920.0,106910.0,0.00114043]
[1762831963737,0.66682336,106920.0,106910.0,0.00333846]
[1762831964138,0.39061472,106920.0,106910.0,0.15576846]
[1762831964336,0.4628613,106920.0,106910.0,0.15576846]
[1762831964538,0.55418497,106920.0,106910.0,0.06219846]
[1762831964738,0.55418497,106920.0,106910.0,0.15576846]
[1762831965041,0.48196361,106920.0,106910.0,0.15576846]
[1762831965242,0.46062367,106920.0,106910.0,0.15576846]
[1762831965749,0.55418497,106920.0,106910.0,0.15576846]
[1762831966244,0.46062367,106920.0,106910.0,0.15576846]
[1762831966640,0.55418497,106920.0,106910.0,0.15576846]
[1762831969542,0.19830497,106920.0,106910.0,0.15576846]
[1762831969738,0.16460415,106920.0,106910.0,0.15576846]
[1762831970043,0.18488497,106920.0,106910.0,0.15576846]
[1762831970835,0.09132367,106920.0,106910.0,0.15576846]
[1762831971041,0.54084087,106930.0,106920.0,0.1523612]
[1762831971244,0.56179884,106930.0,106920.0,0.15455923]
[1762831971448,0.47047517,106930.0,106920.0,0.15455923]
[1762831971641,0.56179884,106930.0,106920.0,0.15455923]
[1762831971841,0.20583884,106930.0,106920.0,0.15455923]
[1762831972039,0.20583414,106930.0,106920.0,0.15455923]
[1762831972245,0.18587617,106930.0,106920.0,0.06099803]
[1762831972445,0.18587617,106930.0,106920.0,0.15455933]
[1762831972746,0.18587617,106930.0,106920.0,0.06099803]
[1762831972941,0.18587617,106930.0,106920.0,0.15455923]
[1762831975045,0.18587617,106930.0,106920.0,0.06099803]
[1762831975248,0.20682567,106930.0,106920.0,0.06099803]
[1762831976245,0.18587617,106930.0,106920.0,0.15455933]
[1762831978049,0.18587617,106930.0,106920.0,0.06099803]
[1762831980250,0.18587617,106930.0,106920.0,0.15455933]
[1762831980450,0.18587617,106930.0,106920.0,0.06099803]
[1762831980653,0.2068199,106930.0,106920.0,0.03605]
[1762831980848,0.2068199,106930.0,106920.0,0.03824803]
[1762831981247,0.2068199,106930.0,106920.0,0.06059803]
[1762831981845,0.2068199,106930.0,106920.0,0.15415943]
[1762831982045,0.18587617,106930.0,106920.0,0.15415943]
[1762831982247,0.18587617,106930.0,106920.0,0.06059803]
[1762831983253,0.20681854,106930.0,106920.0,0.06059803]
[1762831984852,0.0935614,106920.0,106910.0,0.05909043]
[1762831985057,0.54076507,106920.0,106910.0,0.15485856]
[1762831986449,0.54076507,106920.0,106910.0,0.06128846]
[1762831986857,0.63208874,106920.0,106910.0,0.00014043]
[1762831987257,0.63208874,106920.0,106910.0,0.00114043]
[1762831987764,0.65327582,106920.0,106910.0,0.00114043]
[1762831988160,0.65327582,106920.0,106910.0,0.00014043]
[1762831988662,0.65427582,106920.0,106910.0,0.00014043]
[1762831991273,0.29839582,106920.0,106910.0,0.06052846]
[1762831991464,0.29839582,106920.0,106910.0,0.00233846]
[1762831991769,0.65431582,106920.0,106910.0,0.00014043]
[1762831992670,0.65431582,106920.0,106910.0,0.03817846]
[1762831993459,0.65431582,106920.0,106910.0,0.06052846]
[1762831994569,0.65431582,106920.0,106910.0,0.05833043]
[1762831994771,0.65431582,106920.0,106910.0,0.03598043]
[1762831995579,0.65431582,106920.0,106910.0,0.00014043]
[1762831995877,0.65331582,106920.0,106910.0,0.00014043]
[1762831996058,0.65431582,106920.0,106910.0,0.00014043]
[1762831996264,0.0935875,106890.0,106880.0,0.21893416]
[1762831996573,0.18491117,106890.0,106880.0,0.15398433]
[1762831996764,0.18491117,106890.0,106880.0,0.12753589]
[1762831997572,0.18491117,106890.0,106880.0,0.12953589]
[1762831998170,0.18491117,106890.0,106880.0,0.22313219]
[1762831998370,0.09132367,106890.0,106880.0,0.22113219]
[1762831998565,0.18491117,106890.0,106880.0,0.22213219]
[1762831999168,0.18491117,106890.0,106880.0,0.12853589]
[1762831999372,0.27623484,106890.0,106880.0,0.06138803]
[1762831999559,0.27623484,106890.0,106880.0,0.03903803]
[1762831999964,0.27623484,106890.0,106880.0,0.04003803]
[1762832000164,0.27623484,106890.0,106880.0,0.03903803]
[1762832000372,0.27623484,106890.0,106880.0,0.04003803]
[1762832000572,0.18491117,106890.0,106880.0,0.05991803]
[1762832000772,0.18591117,106890.0,106880.0,0.05891803]
[1762832001369,0.18591117,106890.0,106880.0,0.15251433]
[1762832002266,0.18491117,106890.0,106880.0,0.15251433]
[1762832002468,0.27623484,106890.0,106880.0,0.05891803]
[1762832003073,0.27623484,106890.0,106880.0,0.05991803]
[1762832005475,0.27623484,106890.0,106880.0,0.001]
[1762832006576,0.0935963,106880.0,106870.0,0.06728829]
[1762832006884,0.54087997,106880.0,106870.0,0.00014043]
[1762832007179,0.54087997,106880.0,106870.0,0.03568043]
[1762832007780,0.54087997,106880.0,106870.0,0.05905846]
[1762832007986,0.54087997,106880.0,106870.0,0.06005846]
[1762832009682,0.54087997,106880.0,106870.0,0.03887846]
[1762832009883,0.54087997,106880.0,106870.0,0.01597846]
[1762832010079,0.54087997,106880.0,106870.0,0.03887846]
[1762832010684,0.54087997,106880.0,106870.0,0.01378043]
[1762832011779,0.54087997,106880.0,106870.0,0.0008607]
[1762832012984,0.54087997,106880.0,106870.0,0.0364007]
[1762832013375,0.54087997,106880.0,106870.0,0.0575807]
[1762832013575,0.54087997,106880.0,106870.0,0.05977873]
[1762832017278,0.0935914,106890.0,106880.0,0.1503162]
[1762832017484,0.09372603,106900.0,106890.0,0.1503074]
[1762832017686,0.5410497,106900.0,106890.0,0.15250543]
[1762832017988,0.5410497,106900.0,106890.0,0.05891803]
[1762832018188,0.5410497,106900.0,106890.0,0.15250543]
[1762832018788,0.5410497,106900.0,106890.0,0.05891803]
[1762832019887,0.5430497,106900.0,106890.0,0.15250543]
[1762832020097,0.4494641,106900.0,106890.0,0.15250543]
[1762832020591,0.4474641,106900.0,106890.0,0.15250543]
[1762832020892,0.63245225,106900.0,106890.0,0.15250543]
[1762832021081,0.54187355,106900.0,106890.0,0.15250543]
[1762832021491,0.45050699,106900.0,106890.0,0.15250543]
[1762832021783,0.09150699,106900.0,106890.0,0.22065329]
[1762832022291,0.27645225,106900.0,106890.0,0.22165329]
[1762832022491,0.18508569,106900.0,106890.0,0.22165329]
[1762832022692,0.18508569,106900.0,106890.0,0.22265329]
[1762832023099,0.18508569,106900.0,106890.0,0.15550543]
[1762832023295,0.09150699,106900.0,106890.0,0.15550543]
[1762832023486,0.09150699,106900.0,106890.0,0.15450543]
[1762832023691,0.09150699,106900.0,106890.0,0.22165329]
[1762832023993,0.09150699,106900.0,106890.0,0.22365329]
[1762832024794,0.09150699,106900.0,106890.0,0.22065329]
[1762832024993,0.09150699,106900.0,106890.0,0.22165329]
[1762832025195,0.09150699,106900.0,106890.0,0.22065329]
[1762832025386,0.09150699,106900.0,106890.0,0.22165329]
[1762832027488,0.09150699,106900.0,106890.0,0.15450543]
[1762832027889,0.00014043,106900.0,106890.0,0.31301985]
[1762832028190,0.09136656,106910.0,106900.0,0.1502987]
[1762832028388,0.09136656,106910.0,106900.0,0.15249673]
[1762832028893,0.18493646,106910.0,106900.0,0.15249673]
[1762832029683,0.09136656,106910.0,106900.0,0.15249673]
[1762832030998,0.18493646,106910.0,106900.0,0.15349673]
[1762832032190,0.27630302,106910.0,106900.0,0.06091803]
[1762832033090,0.27630302,106910.0,106900.0,0.03873803]
[1762832033291,0.27630302,106910.0,106900.0,0.05909803]
[1762832034086,0.27630302,106910.0,106880.0,0.07992829]
[1762832034087,0.0935787,106900.0,106880.0,0.07992829]
[1762832034292,0.27632052,106890.0,106880.0,0.01497846]
[1762832034493,0.27632052,106890.0,106880.0,0.00233846]
[1762832034494,0.29811519,106890.0,106880.0,0.00233846]
[1762832034694,0.29811519,106890.0,106880.0,0.01546846]
[1762832035093,0.2981154,106890.0,106880.0,0.01546846]
[1762832035396,0.2991154,106890.0,106880.0,0.01546846]
[1762832035897,0.2981154,106890.0,106880.0,0.01546846]
[1762832036098,0.2991154,106890.0,106880.0,0.03671846]
[1762832036994,0.3001154,106890.0,106880.0,0.03671846]
[1762832037502,0.27832052,106890.0,106880.0,0.03671846]
[1762832038303,0.27832052,106890.0,106880.0,0.01513846]
[1762832039006,0.27832052,106890.0,106880.0,0.00014043]
[1762832040006,0.39147338,106890.0,106880.0,4.3e-07]
[1762832040312,0.0936049,106870.0,106860.0,0.05846]
[1762832040496,0.0936137,106860.0,106850.0,0.01313]
[1762832040702,0.0936225,106850.0,106840.0,0.05813]
[1762832040907,0.4495825,106850.0,106840.0,0.15395923]
[1762832041103,0.54094906,106850.0,106840.0,0.06032803]
[1762832041304,0.35596,106850.0,106840.0,0.15395923]
[1762832041610,0.54094906,106850.0,106840.0,0.15395923]
[1762832041810,0.44732656,106850.0,106840.0,0.16326788]
[1762832042198,0.44732656,106850.0,106840.0,0.16626788]
[1762832042199,0.54094906,106850.0,106840.0,0.16626788]
[1762832042509,0.44732656,106850.0,106840.0,0.16626788]
[1762832043211,0.44732656,106850.0,106840.0,0.06732803]
[1762832043212,0.63231562,106850.0,106840.0,0.06732803]
[1762832045008,0.63231562,106850.0,106840.0,0.16095923]
[1762832045213,0.63231562,106850.0,106840.0,0.06732803]
[1762832046810,0.54094906,106850.0,106840.0,0.16095923]
[1762832049818,0.63231562,106850.0,106840.0,0.06732803]
[1762832050418,0.63231562,106850.0,106840.0,0.16095923]
[1762832052420,0.54094906,106850.0,106840.0,0.16095923]
[1762832054121,0.09150699,106860.0,106850.0,0.1517525]
[1762832054321,0.09150699,106860.0,106850.0,0.15395053]
[1762832055227,0.18287355,106860.0,106850.0,0.15395053]
[1762832055422,0.18287355,106860.0,106850.0,0.15895053]
[1762832055623,0.09150699,106860.0,106850.0,0.15895053]
[1762832055927,0.00014043,106860.0,106850.0,0.25031709]
[1762832056226,0.09136656,106880.0,106850.0,0.25031709]
[1762832056227,0.18496716,106880.0,106870.0,0.1517304]
[1762832056529,0.54100716,106880.0,106870.0,0.15392843]
[1762832057430,0.53877312,106880.0,106870.0,0.15392843]
[1762832058330,0.09136656,106880.0,106870.0,0.15392843]
[1762832058529,0.18496276,106880.0,106870.0,0.15392843]
[1762832058722,0.18273312,106880.0,106870.0,0.15592843]
[1762832058924,0.27632932,106880.0,106870.0,0.15592843]
[1762832059125,0.18273312,106880.0,106870.0,0.15592843]
[1762832060235,0.27632932,106880.0,106870.0,0.15592843]
[1762832061934,0.18273312,106880.0,106870.0,0.15592843]
[1762832062938,0.09136656,106880.0,106870.0,0.15592843]
[1762832063330,0.11345434,106880.0,106870.0,0.15592843]
[1762832063838,0.2048209,106880.0,106870.0,0.15592843]
[1762832064333,0.11345434,106880.0,106870.0,0.15592843]
[1762832065238,0.09136656,106880.0,106870.0,0.15592843]
[1762832065737,0.09136656,106880.0,106870.0,0.24729499]
[1762832065936,0.09150699,106890.0,106880.0,0.1501662]
[1762832066137,0.11359913,106890.0,106880.0,0.15236423]
[1762832066338,0.09150699,106890.0,106880.0,0.15236423]
[1762832068341,0.09150699,106890.0,106880.0,0.15436423]
[1762832069834,0.09150699,106890.0,106880.0,0.15736423]
[1762832070643,0.09150699,106890.0,106880.0,0.24873079]
[1762832070947,0.09150699,106890.0,106880.0,0.15736423]
[1762832071141,0.18509439,106890.0,106880.0,0.15736423]
[1762832072339,0.09150699,106890.0,106880.0,0.15736423]
[1762832072743,0.09150699,106890.0,106880.0,0.15536423]
[1762832072949,0.18509439,106890.0,106880.0,0.15436423]
[1762832073446,0.18509439,106890.0,106880.0,0.15336423]
[1762832073754,0.09150699,106890.0,106880.0,0.15436423]
[1762832074133,0.09150699,106890.0,106880.0,0.15336423]
[1762832074338,0.09150699,106890.0,106880.0,0.15436423]
[1762832076750,0.09150699,106890.0,106880.0,0.24573079]
[1762832077450,0.09150699,106890.0,106880.0,0.15436423]
[1762832078555,0.00014043,106890.0,106880.0,0.24573079]
[1762832079550,0.09150699,106890.0,106880.0,0.24573079]
[1762832080854,0.00014043,106890.0,106880.0,0.15436423]
[1762832081341,0.27645995,106890.0,106880.0,0.15436423]
[1762832081546,0.09150649,106890.0,106880.0,0.15436423]
[1762832082248,0.18509389,106890.0,106880.0,0.15436423]
[1762832083843,0.18509389,106890.0,106880.0,0.15336423]
[1762832084447,0.18509389,106890.0,106880.0,0.15236423]
[1762832085551,0.27645995,106890.0,106880.0,0.05876803]
[1762832085752,0.27645995,106890.0,106880.0,0.06070803]
[1762832087156,0.27745995,106890.0,106880.0,0.06070803]
[1762832087854,0.27845995,106890.0,106880.0,0.06070803]
[1762832088055,0.63437995,106890.0,106880.0,0.01391]
[1762832088248,0.63337995,106890.0,106880.0,0.01391]
[1762832088756,0.0935962,106880.0,106870.0,0.1510049]
[1762832088946,0.09136606,106880.0,106870.0,0.15320293]
[1762832089347,0.09136606,106880.0,106870.0,0.22035079]
[1762832089753,0.44842649,106890.0,106880.0,0.1518362]
[1762832089954,0.44842649,106890.0,106880.0,0.15403423]
[1762832090257,0.09250649,106890.0,106880.0,0.15403423]
[1762832090453,0.44842649,106890.0,106880.0,0.15403423]
[1762832091345,0.54201389,106890.0,106880.0,0.15403423]
[1762832091756,0.54101389,106890.0,106880.0,0.15503423]
[1762832092358,0.63237995,106890.0,106880.0,0.15603413]
[1762832092560,0.54101389,106890.0,106880.0,0.15603413]
[1762832094262,0.54101389,106890.0,106880.0,0.15503413]
[1762832095062,0.54101389,106890.0,106880.0,0.15603413]
[1762832095361,0.54101389,106890.0,106880.0,0.15503413]
[1762832096063,0.63237995,106890.0,106880.0,0.15603413]
[1762832096852,0.63237995,106890.0,106880.0,0.15503413]
[1762832097165,0.6545318,106890.0,106880.0,0.15403413]
[1762832097551,0.6545318,106890.0,106880.0,0.06043803]
[1762832097957,0.0935962,106880.0,106870.0,0.05653]
[1762832098155,0.18496226,106880.0,106870.0,0.05872803]
[1762832098661,0.18496226,106880.0,106870.0,0.01499803]
[1762832098868,0.18496226,106880.0,106870.0,0.05872803]
[1762832100360,0.18496226,106880.0,106870.0,0.15233293]
[1762832101066,0.18496226,106880.0,106870.0,0.05872803]
[1762832101760,0.18496226,106880.0,106870.0,0.05972803]
[1762832102674,0.18496226,106880.0,106870.0,0.001]
[1762832102966,0.20709528,106880.0,106870.0,0.001]
[1762832103162,0.18496536,106880.0,106870.0,0.13953293]
[1762832103356,0.09136606,106880.0,106870.0,0.15244293]
[1762832103561,0.54092216,106880.0,106870.0,0.15244293]
[1762832103762,0.54092216,106880.0,106870.0,0.05883803]
[1762832103963,0.54092216,106880.0,106870.0,0.15244293]
[1762832104372,0.54092216,106880.0,106870.0,0.15344293]
[1762832104871,0.54092216,106880.0,106870.0,0.15444293]
[1762832107472,0.54092216,106880.0,106870.0,0.06083803]
[1762832108875,0.54092216,106880.0,106870.0,0.05983803]
[1762832109971,0.54092216,106880.0,106870.0,0.03463]
[1762832111374,0.54092216,106880.0,106870.0,0.05664]
[1762832112773,0.54092216,106880.0,106870.0,0.03463]
[1762832112962,0.54092216,106880.0,106870.0,0.01291]
[1762832113166,0.54092216,106880.0,106870.0,0.03463]
[1762832113575,0.0936049,106870.0,106860.0,0.12392829]
[1762832113775,0.18497096,106870.0,106860.0,0.21973992]
[1762832114770,0.18497096,106870.0,106860.0,0.12612632]
[1762832115076,0.27633702,106870.0,106860.0,0.00114043]
[1762832115580,0.27633702,106870.0,106860.0,0.00214043]
[1762832119978,0.27633702,106870.0,106850.0,0.06714786]
[1762832120183,0.0936224,106850.0,106840.0,0.10211786]
[1762832120382,0.18498846,106850.0,106840.0,0.06714786]
[1762832120583,0.27635452,106850.0,106840.0,0.03214786]
[1762832120787,0.0936311,106840.0,106830.0,0.03223768]
[1762832120987,0.63236322,106840.0,106830.0,0.04574768]
[1762832121188,0.54099716,106840.0,106830.0,0.09112768]
[1762832121782,0.63236322,106840.0,106830.0,0.09112768]
[1762832121992,0.54099716,106840.0,106830.0,0.09112768]
[1762832122296,0.54099716,106840.0,106830.0,0.05897982]
[1762832122979,0.65459411,106840.0,106830.0,0.05897982]
[1762832123591,0.54103716,106840.0,106830.0,0.06117785]
[1762832123984,0.54103716,106840.0,106830.0,0.15481775]
[1762832124379,0.44740606,106840.0,106830.0,0.15481775]
[1762832124582,0.54103716,106840.0,106830.0,0.06117785]
[1762832124780,0.44740606,106840.0,106830.0,0.15481775]
[1762832124982,0.09136606,106840.0,106830.0,0.15481775]
[1762832125292,0.54103716,106840.0,106830.0,0.15481775]
[1762832125477,0.44740606,106840.0,106830.0,0.15481775]
[1762832125791,0.44740606,106840.0,106830.0,0.15581775]
[1762832126689,0.54103726,106840.0,106830.0,0.15581775]
[1762832126892,0.54103726,106840.0,106830.0,0.15681775]
[1762832127688,0.44740606,106840.0,106830.0,0.15681775]
[1762832127894,0.54117419,106850.0,106840.0,0.1525212]
[1762832128087,0.54117419,106850.0,106840.0,0.15471923]
[1762832128494,0.54117419,106850.0,106840.0,0.06108803]
[1762832128795,0.54117419,106850.0,106840.0,0.15471923]
[1762832129386,0.54117419,106850.0,106840.0,0.06108803]
[1762832130396,0.54117419,106850.0,106840.0,0.15471923]
[1762832130894,0.54117419,106850.0,106840.0,0.06108803]
[1762832131398,0.56334033,106850.0,106840.0,0.01351]
[1762832132196,0.56434033,106850.0,106840.0,0.01351]
[1762832132396,0.56534033,106850.0,106840.0,0.01351]
[1762832133100,0.0936312,106840.0,106830.0,0.01359982]
[1762832133296,0.27636332,106840.0,106830.0,0.01579785]
[1762832133804,0.27636332,106840.0,106830.0,8.982e-05]
[1762832134099,0.29852648,106840.0,106830.0,8.982e-05]
[1762832134793,0.29852648,106840.0,106830.0,0.01359982]
[1762832136000,0.18499726,106840.0,106830.0,0.15481765]
[1762832136200,0.18499726,106840.0,106830.0,0.06117785]
[1762832137008,0.27636332,106840.0,106830.0,0.06117785]
[1762832137193,0.18499726,106840.0,106830.0,0.15481765]
[1762832137395,0.54115726,106840.0,106830.0,0.06117785]
[1762832138697,0.63252332,106840.0,106830.0,0.06117785]
[1762832139504,0.63252332,106840.0,106830.0,0.03785785]
[1762832140203,0.63252332,106840.0,106830.0,0.06117785]
[1762832140408,0.65469037,106840.0,106830.0,0.06117785]
[1762832141208,0.65469037,106840.0,106830.0,0.03565982]
[1762832142102,0.65469037,106840.0,106830.0,0.01359982]
[1762832142298,0.65469037,106840.0,106830.0,8.982e-05]
[1762832142504,0.65469037,106840.0,106830.0,0.01359982]
[1762832142905,0.74647817,106840.0,106830.0,0.01359982]
[1762832144105,0.74647817,106840.0,106830.0,8.982e-05]
[1762832144314,0.0936399,106830.0,106820.0,0.01305043]
[1762832144505,0.27665318,106830.0,106820.0,0.01305043]
[1762832145309,0.27677033,106830.0,106820.0,0.01305043]
[1762832145510,0.29907372,106830.0,106820.0,0.01305043]
[1762832146006,0.29907372,106830.0,106820.0,0.01405043]
[1762832146206,0.39058036,106830.0,106820.0,0.01405043]
[1762832146607,0.39058036,106830.0,106820.0,0.01505043]
[1762832146808,0.29907372,106830.0,106820.0,0.01505043]
[1762832147201,0.29907372,106830.0,106820.0,0.00214043]
[1762832147408,0.0936574,106810.0,106800.0,0.03580407]
[1762832147711,0.63290783,106810.0,106800.0,0.0613221]
[1762832148901,0.63290783,106810.0,106800.0,0.0653221]
[1762832149101,0.63290783,106810.0,106800.0,0.06312407]
[1762832149501,0.63290783,106810.0,106800.0,0.06612407]
[1762832150007,0.63290783,106810.0,106800.0,0.02074407]
[1762832150616,0.65525389,106810.0,106800.0,0.02074407]
[1762832150915,0.72441447,106810.0,106800.0,0.00723407]
[1762832151112,0.65525454,106810.0,106800.0,0.00723407]
[1762832151317,0.0936662,106800.0,106790.0,0.00014043]
[1762832151511,0.39063764,106800.0,106790.0,0.00014043]
[1762832151712,0.0936749,106790.0,106780.0,0.03459]
[1762832151911,0.54142154,106790.0,106780.0,0.03459]
[1762832152113,0.54142154,106790.0,106780.0,0.05638]
[1762832153308,0.54542154,106790.0,106780.0,0.05638]
[1762832154015,0.63492818,106790.0,106780.0,0.05638]
[1762832154218,0.0936925,106770.0,106760.0,8.133e-05]
[1762832154408,0.72460466,106770.0,106760.0,0.05812936]
[1762832154605,0.63309802,106770.0,106760.0,0.05812936]
[1762832155003,0.72460466,106770.0,106760.0,8.133e-05]
[1762832155210,0.0937012,106760.0,106750.0,0.05608418]
[1762832155509,0.36822112,106760.0,106750.0,0.05828221]
[1762832156714,0.36822112,106760.0,106750.0,0.06028221]
[1762832156909,0.36822112,106760.0,106750.0,0.06228221]
[1762832156910,0.17961552,106760.0,106750.0,0.06228221]
[1762832161519,0.17961552,106760.0,106750.0,0.06240221]
[1762832161921,0.53609552,106760.0,106750.0,0.06240221]
[1762832163221,0.53609552,106760.0,106750.0,0.15611221]
[1762832164022,0.08591432,106760.0,106750.0,0.15611221]
[1762832164221,0.53617552,106760.0,106750.0,0.22311192]
[1762832165224,0.00025267,106770.0,106760.0,0.05572]
[1762832165524,0.49273381,106770.0,106760.0,0.05791803]
[1762832167228,0.49273381,106770.0,106760.0,0.05891803]
[1762832167434,0.49273381,106770.0,106760.0,0.06091803]
[1762832167727,0.49273381,106770.0,106760.0,0.003]
[1762832167920,0.0937012,106760.0,106750.0,0.01321418]
[1762832168121,0.17968641,106760.0,106750.0,0.01321418]
[1762832168523,0.26560073,106760.0,106750.0,0.01321418]
[1762832168926,0.26560073,106760.0,106750.0,0.00023418]
[1762832169129,0.0937188,106740.0,106730.0,0.01298]
[1762832169323,0.53722139,106740.0,106730.0,0.01298]
[1762832169621,0.53722139,106740.0,106730.0,0.08004574]
[1762832170018,0.53722139,106740.0,106730.0,0.10190574]
[1762832170220,0.53722139,106740.0,106730.0,0.12303574]
[1762832170929,0.53722139,106740.0,106730.0,0.10190574]
[1762832171229,0.53722139,106740.0,106730.0,0.08204574]
[1762832171829,0.53722139,106740.0,106730.0,0.08404574]
[1762832172028,0.62313571,106740.0,106730.0,0.07106574]
[1762832173234,0.62313571,106740.0,106730.0,0.004]
[1762832175232,0.62313571,106740.0,106730.0,0.01673]
[1762832175639,0.0937275,106730.0,106720.0,0.03459]
[1762832175938,0.17975739,106730.0,106720.0,0.13955218]
[1762832176139,0.17975739,106730.0,106720.0,0.05572]
[1762832176339,0.17975739,106730.0,106720.0,0.13955218]
[1762832176726,0.18175739,106730.0,106720.0,0.13955218]
[1762832177134,0.18175739,106730.0,106720.0,0.14175021]
[1762832177338,0.18175739,106730.0,106720.0,0.00219803]
[1762832177538,0.0937451,106710.0,106700.0,0.16619723]
[1762832177738,0.0937539,106700.0,106690.0,0.01280644]
[1762832178036,0.26566169,106700.0,106690.0,0.01500447]
[1762832178438,0.0937627,106690.0,106680.0,0.17308505]
[1762832178636,0.45492073,106690.0,106680.0,0.17381772]
[1762832179337,0.1255315,106680.0,106670.0,0.13009046]
[1762832179545,0.21374849,106680.0,106670.0,0.11736046]
[1762832179748,0.29966281,106680.0,106670.0,0.11736046]
[1762832180252,0.03176,106660.0,106650.0,0.22350436]
[1762832180448,0.39301559,106660.0,106650.0,0.22350436]
[1762832180746,0.47892991,106660.0,106650.0,0.22350436]
[1762832181550,0.47892991,106660.0,106650.0,0.05584]
[1762832181751,0.65863333,106660.0,106650.0,0.05584]